[Event "Early-Titled-Tuesday-Blitz-October-24-2023"]
[Site "Chess.com"]
[Date "2023.10.24"]
[Round "6"]
[White "CristianS27"]
[Black "blitzking1729"]
[Result "1-0"]
[WhiteElo "2561"]
[BlackElo "2798"]
[TimeControl "180+1"]
[EndTime "9:05:43 PDT"]
[Termination "CristianS27 won by resignation"]

1. e4 {[%clk 0:03:00.9]} 1... g6 {[%clk 0:02:52.5]} 2. d4 {[%clk 0:02:59.2]}
2... Bg7 {[%clk 0:02:52.5]} 3. Nc3 {[%clk 0:02:59.8]} 3... d6 {[%clk 0:02:52.6]}
4. Nf3 {[%clk 0:02:59.8]} 4... a6 {[%clk 0:02:52.4]} 5. h3 {[%clk 0:02:59.1]}
5... Nf6 {[%clk 0:02:51.7]} 6. Be3 {[%clk 0:02:56]} 6... O-O {[%clk 0:02:51.5]}
7. Bd3 {[%clk 0:02:55.9]} 7... Nc6 {[%clk 0:02:50.3]} 8. O-O {[%clk 0:02:53.7]}
8... e5 {[%clk 0:02:50.4]} 9. dxe5 {[%clk 0:02:54]} 9... dxe5 {[%clk 0:02:48.2]}
10. Bc4 {[%clk 0:02:50.4]} 10... Qe7 {[%clk 0:02:43.8]} 11. a4 {[%clk
0:02:38.3]} 11... h6 {[%clk 0:02:30.6]} 12. Qe2 {[%clk 0:02:08.1]} 12... Be6
{[%clk 0:02:25.6]} 13. Rfd1 {[%clk 0:02:05.2]} 13... Rfd8 {[%clk 0:02:24.8]} 14.
Nd5 {[%clk 0:01:57.6]} 14... Bxd5 {[%clk 0:02:21.4]} 15. exd5 {[%clk 0:01:52.2]}
15... Na5 {[%clk 0:02:21.1]} 16. Ba2 {[%clk 0:01:45.3]} 16... b6 {[%clk
0:02:21.1]} 17. c3 {[%clk 0:01:35.3]} 17... Nb7 {[%clk 0:02:19.5]} 18. Bd4
{[%clk 0:01:06.3]} 18... e4 {[%clk 0:02:12.6]} 19. Ne5 {[%clk 0:01:01.7]} 19...
Re8 {[%clk 0:02:06.7]} 20. Nxg6 {[%clk 0:00:56.5]} 20... Qd6 {[%clk 0:01:59.8]}
21. Nh4 {[%clk 0:00:51.9]} 21... Qf4 {[%clk 0:01:55.1]} 22. g3 {[%clk
0:00:44.9]} 22... Qg5 {[%clk 0:01:54.5]} 23. Be3 {[%clk 0:00:41.8]} 23... Qh5
{[%clk 0:01:54.2]} 24. Qxh5 {[%clk 0:00:28.6]} 24... Nxh5 {[%clk 0:01:53.7]} 25.
Nf5 {[%clk 0:00:29.5]} 25... Kh7 {[%clk 0:01:48]} 26. d6 {[%clk 0:00:22.9]}
26... Nxd6 {[%clk 0:01:36.4]} 27. Nxd6 {[%clk 0:00:21.5]} 27... cxd6 {[%clk
0:01:37.3]} 28. Bxf7 {[%clk 0:00:22.1]} 28... Nf6 {[%clk 0:01:37.3]} 29. Bxe8
{[%clk 0:00:21.8]} 29... Nxe8 {[%clk 0:01:37.8]} 30. Bxb6 {[%clk 0:00:21.6]}
30... Rb8 {[%clk 0:01:37.8]} 31. Bd4 {[%clk 0:00:21.2]} 31... Rxb2 {[%clk
0:01:35.2]} 32. Bxg7 {[%clk 0:00:20.5]} 32... Kxg7 {[%clk 0:01:34.5]} 33. Rab1
{[%clk 0:00:21.1]} 33... Ra2 {[%clk 0:01:34.4]} 34. Rb4 {[%clk 0:00:17.2]} 34...
e3 {[%clk 0:01:25.3]} 35. fxe3 {[%clk 0:00:18.1]} 35... Kf7 {[%clk 0:01:25]} 36.
Rf4+ {[%clk 0:00:14.5]} 36... Ke7 {[%clk 0:01:24.8]} 37. Rf2 {[%clk 0:00:15.2]}
37... Rxa4 {[%clk 0:01:24.3]} 38. Rd4 {[%clk 0:00:14]} 38... Ra1+ {[%clk
0:01:23.8]} 39. Kg2 {[%clk 0:00:14.1]} 39... Ra3 {[%clk 0:01:24]} 40. Rc2 {[%clk
0:00:10.2]} 40... Nf6 {[%clk 0:01:22]} 41. Rh4 {[%clk 0:00:09.2]} 41... Nd5
{[%clk 0:01:20.7]} 42. Kf3 {[%clk 0:00:07]} 42... Nxc3 {[%clk 0:01:17.6]} 43.
Rxh6 {[%clk 0:00:06.7]} 43... Nd5 {[%clk 0:01:18]} 44. h4 {[%clk 0:00:03.6]}
44... Nxe3 {[%clk 0:01:17.1]} 45. Re2 {[%clk 0:00:03.6]} 45... Kd7 {[%clk
0:01:11.9]} 46. Rxe3 {[%clk 0:00:04.1]} 46... Ra1 {[%clk 0:01:11.9]} 47. Rh7+
{[%clk 0:00:04.7]} 47... Kc6 {[%clk 0:01:11.9]} 48. h5 {[%clk 0:00:05.6]} 48...
Rf1+ {[%clk 0:01:10.7]} 49. Kg2 {[%clk 0:00:06.2]} 49... Rf6 {[%clk 0:01:09.9]}
50. h6 {[%clk 0:00:06.5]} 50... Kc5 {[%clk 0:01:09.3]} 51. g4 {[%clk 0:00:06.7]}
51... Kd4 {[%clk 0:01:09]} 52. Rf3 {[%clk 0:00:06.3]} 52... Rg6 {[%clk
0:01:09.1]} 53. Kg3 {[%clk 0:00:06.7]} 53... a5 {[%clk 0:01:08.8]} 54. Ra3
{[%clk 0:00:06.9]} 54... d5 {[%clk 0:01:08.2]} 55. Rxa5 {[%clk 0:00:07.2]} 55...
Ke4 {[%clk 0:01:07.7]} 56. Kh4 {[%clk 0:00:07.2]} 56... d4 {[%clk 0:01:07.3]}
57. Re7+ {[%clk 0:00:06.1]} 57... Kf3 {[%clk 0:01:06]} 58. Rf5+ {[%clk
0:00:06.1]} 58... Kg2 {[%clk 0:01:05.3]} 59. Kh5 {[%clk 0:00:06.8]} 59... Rb6
{[%clk 0:01:04.3]} 60. h7 {[%clk 0:00:06.8]} 60... Rb1 {[%clk 0:01:04.3]} 61.
Kg6 {[%clk 0:00:06.2]} 61... Rb8 {[%clk 0:01:03]} 62. g5 {[%clk 0:00:05]} 62...
d3 {[%clk 0:01:03.3]} 63. Rd7 {[%clk 0:00:05.2]} 63... Kg3 {[%clk 0:01:03]} 64.
Rxd3+ {[%clk 0:00:04.8]} 64... Kg4 {[%clk 0:01:03.5]} 65. Rd4+ {[%clk
0:00:05.4]} 65... Kg3 {[%clk 0:01:03.5]} 66. Kg7 {[%clk 0:00:05.5]} 66... Rb7+
{[%clk 0:01:03.1]} 67. Rf7 {[%clk 0:00:06.2]} 67... Rb8 {[%clk 0:01:03.4]} 68.
h8=Q {[%clk 0:00:06.2]} 68... Rxh8 {[%clk 0:01:03.6]} 69. Kxh8 {[%clk
0:00:07.1]} 1-0

[Event "Early-Titled-Tuesday-Blitz-October-24-2023"]
[Site "Chess.com"]
[Date "2023.10.24"]
[Round "6"]
[White "SaqoChess_Twitch"]
[Black "Hovik_Hayrapetyan"]
[Result "0-1"]
[WhiteElo "2574"]
[BlackElo "2808"]
[TimeControl "180+1"]
[EndTime "9:05:45 PDT"]
[Termination "Hovik_Hayrapetyan won by resignation"]

1. d4 {[%clk 0:03:00.9]} 1... Nf6 {[%clk 0:03:00]} 2. c4 {[%clk 0:03:01.3]} 2...
e6 {[%clk 0:03:00.5]} 3. Nc3 {[%clk 0:03:01.9]} 3... Bb4 {[%clk 0:03:00.6]} 4.
a3 {[%clk 0:03:01.4]} 4... Bxc3+ {[%clk 0:03:00.3]} 5. bxc3 {[%clk 0:03:02]}
5... b6 {[%clk 0:02:54.3]} 6. e3 {[%clk 0:02:59.8]} 6... Nc6 {[%clk 0:02:52.5]}
7. Bd3 {[%clk 0:02:58.9]} 7... Ba6 {[%clk 0:02:49.5]} 8. e4 {[%clk 0:02:57.8]}
8... Na5 {[%clk 0:02:47.3]} 9. e5 {[%clk 0:02:57.9]} 9... Ng8 {[%clk 0:02:46.4]}
10. Qg4 {[%clk 0:02:57.6]} 10... Kf8 {[%clk 0:02:36.8]} 11. Bg5 {[%clk
0:02:49.1]} 11... Qc8 {[%clk 0:02:29.1]} 12. Qe2 {[%clk 0:02:46.9]} 12... h6
{[%clk 0:02:26.3]} 13. Be3 {[%clk 0:02:44.7]} 13... Ne7 {[%clk 0:02:24.6]} 14.
Nh3 {[%clk 0:02:36.9]} 14... c5 {[%clk 0:02:18.7]} 15. d5 {[%clk 0:02:31.8]}
15... exd5 {[%clk 0:01:48]} 16. cxd5 {[%clk 0:02:31.6]} 16... Bxd3 {[%clk
0:01:48.9]} 17. Qxd3 {[%clk 0:02:31.7]} 17... d6 {[%clk 0:01:47.5]} 18. exd6
{[%clk 0:01:53.5]} 18... Nf5 {[%clk 0:01:46.9]} 19. O-O {[%clk 0:01:34.3]} 19...
Nxd6 {[%clk 0:01:34.5]} 20. Nf4 {[%clk 0:01:34.2]} 20... Qf5 {[%clk 0:01:31.7]}
21. Qa6 {[%clk 0:01:28.1]} 21... g6 {[%clk 0:01:16.1]} 22. g3 {[%clk 0:01:11.2]}
22... Nac4 {[%clk 0:01:10.7]} 23. Rfe1 {[%clk 0:01:05.7]} 23... Kg7 {[%clk
0:01:09.3]} 24. Ng2 {[%clk 0:00:56.1]} 24... Rhe8 {[%clk 0:00:58.6]} 25. Bf4
{[%clk 0:00:54.4]} 25... Qxd5 {[%clk 0:00:45.4]} 26. Red1 {[%clk 0:00:50.7]}
26... Qc6 {[%clk 0:00:44]} 27. Ne3 {[%clk 0:00:48.2]} 27... Nxe3 {[%clk
0:00:42.3]} 28. fxe3 {[%clk 0:00:48.4]} 28... Nf5 {[%clk 0:00:36]} 29. Qd3
{[%clk 0:00:33.5]} 29... Rad8 {[%clk 0:00:30.6]} 30. Qc2 {[%clk 0:00:33.7]}
30... Rxd1+ {[%clk 0:00:28.2]} 31. Rxd1 {[%clk 0:00:34.6]} 31... Nxe3 {[%clk
0:00:27.6]} 32. Bxe3 {[%clk 0:00:31]} 32... Rxe3 {[%clk 0:00:28.5]} 33. Rf1
{[%clk 0:00:26.7]} 33... Qe6 {[%clk 0:00:26.6]} 34. c4 {[%clk 0:00:22.4]} 34...
Re2 {[%clk 0:00:24.5]} 35. Qc3+ {[%clk 0:00:22.1]} 35... Qe5 {[%clk 0:00:22.8]}
36. Qxe5+ {[%clk 0:00:15.7]} 36... Rxe5 {[%clk 0:00:23.7]} 37. Rd1 {[%clk
0:00:14.1]} 37... Re3 {[%clk 0:00:23.3]} 38. a4 {[%clk 0:00:12]} 38... Ra3
{[%clk 0:00:23.3]} 39. Rd7 {[%clk 0:00:09.9]} 39... Rxa4 {[%clk 0:00:23.5]} 40.
Kg2 {[%clk 0:00:09.5]} 40... Rxc4 {[%clk 0:00:19.9]} 41. Rxa7 {[%clk 0:00:09.9]}
41... b5 {[%clk 0:00:19.5]} 42. Rb7 {[%clk 0:00:10.6]} 42... b4 {[%clk
0:00:19.8]} 43. h4 {[%clk 0:00:11.5]} 43... Rc3 {[%clk 0:00:19.4]} 44. Kh3
{[%clk 0:00:12.2]} 44... h5 {[%clk 0:00:19.2]} 45. Rb6 {[%clk 0:00:10.3]} 45...
b3 {[%clk 0:00:19.2]} 46. Rb7 {[%clk 0:00:09.6]} 46... c4 {[%clk 0:00:19.6]} 47.
Rb5 {[%clk 0:00:06.9]} 47... Rc2 {[%clk 0:00:19.9]} 48. g4 {[%clk 0:00:07.6]}
48... Rc3+ {[%clk 0:00:19.9]} 49. Kg2 {[%clk 0:00:07.5]} 49... hxg4 {[%clk
0:00:20.8]} 50. Kh2 {[%clk 0:00:07.9]} 50... Kh6 {[%clk 0:00:20.1]} 51. Kg2
{[%clk 0:00:08.1]} 51... f5 {[%clk 0:00:19.9]} 52. Rb8 {[%clk 0:00:08.2]} 52...
f4 {[%clk 0:00:20.1]} 53. Kf2 {[%clk 0:00:07.6]} 53... Rc2+ {[%clk 0:00:20]} 54.
Ke1 {[%clk 0:00:07.9]} 54... b2 {[%clk 0:00:19.8]} 55. Kd1 {[%clk 0:00:08.6]}
55... Rc1+ {[%clk 0:00:20.2]} 56. Kd2 {[%clk 0:00:08.5]} 56... c3+ {[%clk
0:00:19.9]} 57. Ke2 {[%clk 0:00:08]} 57... b1=Q {[%clk 0:00:18.8]} 58. Rh8+
{[%clk 0:00:07.6]} 58... Kg7 {[%clk 0:00:18.7]} 0-1

[Event "Early-Titled-Tuesday-Blitz-October-24-2023"]
[Site "Chess.com"]
[Date "2023.10.24"]
[Round "6"]
[White "laiciffOneslraCsungaM"]
[Black "PenguiinQueen"]
[Result "0-1"]
[WhiteElo "2327"]
[BlackElo "2241"]
[TimeControl "180+1"]
[EndTime "9:05:45 PDT"]
[Termination "PenguiinQueen won by resignation"]

1. d4 {[%clk 0:02:33.2]} 1... Nf6 {[%clk 0:02:58.5]} 2. Bf4 {[%clk 0:02:31.7]}
2... d6 {[%clk 0:02:54.1]} 3. Nf3 {[%clk 0:02:09.8]} 3... g6 {[%clk 0:02:53.1]}
4. h3 {[%clk 0:01:58.2]} 4... Bg7 {[%clk 0:02:52.4]} 5. e3 {[%clk 0:01:58.1]}
5... Kf8 {[%clk 0:02:52.1]} 6. Be2 {[%clk 0:01:56.9]} 6... Ke8 {[%clk
0:02:52.4]} 7. O-O {[%clk 0:01:51.2]} 7... Nbd7 {[%clk 0:02:45.1]} 8. Bh2 {[%clk
0:01:49.2]} 8... c6 {[%clk 0:02:43.8]} 9. c4 {[%clk 0:01:48.8]} 9... h5 {[%clk
0:02:37.4]} 10. Nc3 {[%clk 0:01:47.5]} 10... a5 {[%clk 0:02:28.7]} 11. e4 {[%clk
0:01:47.1]} 11... Kf8 {[%clk 0:02:19.9]} 12. Re1 {[%clk 0:01:41.4]} 12... Kg8
{[%clk 0:02:13.2]} 13. e5 {[%clk 0:01:40.6]} 13... Ne8 {[%clk 0:02:09.5]} 14.
Bd3 {[%clk 0:01:36]} 14... dxe5 {[%clk 0:02:05.4]} 15. dxe5 {[%clk 0:01:34.4]}
15... Nc5 {[%clk 0:02:05.5]} 16. Bc2 {[%clk 0:01:25.3]} 16... Be6 {[%clk
0:02:02.9]} 17. b3 {[%clk 0:01:23.7]} 17... Qxd1 {[%clk 0:01:51.9]} 18. Raxd1
{[%clk 0:01:24.6]} 18... Bh6 {[%clk 0:01:38.2]} 19. a3 {[%clk 0:01:21]} 19...
Kg7 {[%clk 0:01:33.1]} 20. Nd4 {[%clk 0:01:18.1]} 20... Nc7 {[%clk 0:01:26.5]}
21. f4 {[%clk 0:01:09.2]} 21... Rhd8 {[%clk 0:01:25]} 22. f5 {[%clk 0:01:03.4]}
22... gxf5 {[%clk 0:01:17.4]} 23. Nxf5+ {[%clk 0:00:56.9]} 23... Bxf5 {[%clk
0:01:17.1]} 24. Bxf5 {[%clk 0:00:57.8]} 24... N7e6 {[%clk 0:01:16.8]} 25. b4
{[%clk 0:00:54.5]} 25... axb4 {[%clk 0:01:11.1]} 26. axb4 {[%clk 0:00:55.4]}
26... Nd4 {[%clk 0:00:56.4]} 27. Rxd4 {[%clk 0:00:49.1]} 27... Rxd4 {[%clk
0:00:56.3]} 28. bxc5 {[%clk 0:00:49]} 28... Bd2 {[%clk 0:00:47.2]} 29. Ne2
{[%clk 0:00:38.1]} 29... Rxc4 {[%clk 0:00:38.6]} 30. Rd1 {[%clk 0:00:35.8]}
30... Be3+ {[%clk 0:00:28.3]} 31. Kf1 {[%clk 0:00:34.1]} 31... Bxc5 {[%clk
0:00:26.3]} 32. e6 {[%clk 0:00:33.4]} 32... f6 {[%clk 0:00:24]} 33. Bg1 {[%clk
0:00:27.7]} 33... Bd6 {[%clk 0:00:20.3]} 34. Be3 {[%clk 0:00:20]} 34... Ra2
{[%clk 0:00:19.2]} 35. Rd2 {[%clk 0:00:19.8]} 35... Ra1+ {[%clk 0:00:17.2]} 36.
Kf2 {[%clk 0:00:20.2]} 36... b5 {[%clk 0:00:16.6]} 37. Bd3 {[%clk 0:00:15.1]}
37... Rca4 {[%clk 0:00:15.1]} 38. Nd4 {[%clk 0:00:13.3]} 38... R4a2 {[%clk
0:00:12.2]} 39. Nf5+ {[%clk 0:00:08.8]} 39... Kf8 {[%clk 0:00:12]} 40. Nd4
{[%clk 0:00:05.7]} 40... Rxd2+ {[%clk 0:00:11.4]} 41. Bxd2 {[%clk 0:00:06.6]}
41... b4 {[%clk 0:00:10.4]} 42. Nxc6 {[%clk 0:00:06]} 42... b3 {[%clk 0:00:10]}
43. Bc3 {[%clk 0:00:06.2]} 43... Ra2+ {[%clk 0:00:09.6]} 44. Ke3 {[%clk
0:00:05.8]} 44... b2 {[%clk 0:00:09.6]} 45. Nd4 {[%clk 0:00:05.5]} 45... Ra3
{[%clk 0:00:08.8]} 46. Bxb2 {[%clk 0:00:05.2]} 46... Ra2 {[%clk 0:00:08.9]} 47.
Bc3 {[%clk 0:00:05.2]} 47... Bc5 {[%clk 0:00:09.4]} 48. Ke4 {[%clk 0:00:02.1]}
48... Rxg2 {[%clk 0:00:09.1]} 49. Nc6 {[%clk 0:00:01.2]} 49... Rg3 {[%clk
0:00:08.3]} 50. Bd4 {[%clk 0:00:02.1]} 50... Bd6 {[%clk 0:00:07.9]} 51. Bc5
{[%clk 0:00:02]} 51... Bxc5 {[%clk 0:00:07.4]} 0-1

[Event "Early-Titled-Tuesday-Blitz-October-24-2023"]
[Site "Chess.com"]
[Date "2023.10.24"]
[Round "6"]
[White "SlippperyWhenWet"]
[Black "zverr1"]
[Result "1-0"]
[WhiteElo "2359"]
[BlackElo "2497"]
[TimeControl "180+1"]
[EndTime "9:05:50 PDT"]
[Termination "SlippperyWhenWet won on time"]

1. c4 {[%clk 0:03:00.9]} 1... Nf6 {[%clk 0:02:59.2]} 2. Nf3 {[%clk 0:03:01.2]}
2... g6 {[%clk 0:02:59.1]} 3. g3 {[%clk 0:03:01.6]} 3... Bg7 {[%clk 0:02:59.6]}
4. Bg2 {[%clk 0:03:02.1]} 4... O-O {[%clk 0:03:00.3]} 5. O-O {[%clk 0:03:02.4]}
5... c6 {[%clk 0:03:01]} 6. Nc3 {[%clk 0:03:02.5]} 6... d5 {[%clk 0:03:01.7]} 7.
cxd5 {[%clk 0:03:02.9]} 7... cxd5 {[%clk 0:03:02.6]} 8. d4 {[%clk 0:03:02.5]}
8... Ne4 {[%clk 0:03:03.1]} 9. Ne5 {[%clk 0:02:49.7]} 9... Nxc3 {[%clk
0:03:03.1]} 10. bxc3 {[%clk 0:02:49.1]} 10... Nd7 {[%clk 0:03:04]} 11. Nd3
{[%clk 0:02:38.5]} 11... e6 {[%clk 0:02:49.3]} 12. Bf4 {[%clk 0:02:34.2]} 12...
Nb6 {[%clk 0:02:39]} 13. Rb1 {[%clk 0:02:18.5]} 13... Nc4 {[%clk 0:02:35.1]} 14.
Ne5 {[%clk 0:02:16.8]} 14... Nxe5 {[%clk 0:02:32.6]} 15. Bxe5 {[%clk 0:02:17.1]}
15... Bxe5 {[%clk 0:02:32.5]} 16. dxe5 {[%clk 0:02:18]} 16... Qc7 {[%clk
0:02:33.3]} 17. Qd4 {[%clk 0:02:17.3]} 17... b6 {[%clk 0:00:57]} 18. c4 {[%clk
0:02:05.2]} 18... Ba6 {[%clk 0:00:57.6]} 19. cxd5 {[%clk 0:02:03.8]} 19... exd5
{[%clk 0:00:58.3]} 20. Rfc1 {[%clk 0:01:59.5]} 20... Qe7 {[%clk 0:00:46.7]} 21.
Qxd5 {[%clk 0:01:43.8]} 21... Bxe2 {[%clk 0:00:37]} 22. Re1 {[%clk 0:01:32.8]}
22... Rad8 {[%clk 0:00:29.4]} 23. Qb3 {[%clk 0:01:22.2]} 23... Bg4 {[%clk
0:00:20.6]} 24. Rbc1 {[%clk 0:01:10.7]} 24... Be6 {[%clk 0:00:20.2]} 25. Qa4
{[%clk 0:01:10.9]} 25... Rc8 {[%clk 0:00:17.3]} 26. h4 {[%clk 0:01:02.8]} 26...
Rfd8 {[%clk 0:00:13.9]} 27. h5 {[%clk 0:00:53]} 27... Kg7 {[%clk 0:00:14.1]} 28.
Qf4 {[%clk 0:00:50.5]} 28... g5 {[%clk 0:00:09.1]} 29. Qa4 {[%clk 0:00:34.3]}
29... h6 {[%clk 0:00:08.7]} 30. a3 {[%clk 0:00:26.9]} 30... Qd7 {[%clk
0:00:06.3]} 31. Qb4 {[%clk 0:00:24.3]} 31... Rxc1 {[%clk 0:00:02.5]} 32. Rxc1
{[%clk 0:00:24.1]} 32... Re8 {[%clk 0:00:02.2]} 33. Bf3 {[%clk 0:00:21.7]} 33...
Rc8 {[%clk 0:00:02.2]} 34. Rd1 {[%clk 0:00:21.6]} 34... Qe8 {[%clk 0:00:01.7]}
35. Qd4 {[%clk 0:00:18.2]} 35... Rc5 {[%clk 0:00:02.1]} 36. Re1 {[%clk
0:00:13.5]} 36... Qc8 {[%clk 0:00:02.2]} 37. Be4 {[%clk 0:00:11.3]} 37... Qc7
{[%clk 0:00:02.3]} 38. Bd3 {[%clk 0:00:11]} 38... Rd5 {[%clk 0:00:01.6]} 39. Qe4
{[%clk 0:00:10.9]} 39... Kf8 {[%clk 0:00:01.6]} 40. Bc4 {[%clk 0:00:08]} 40...
Rc5 {[%clk 0:00:01.2]} 41. Bxe6 {[%clk 0:00:08.2]} 41... fxe6 {[%clk 0:00:02.1]}
42. Qf3+ {[%clk 0:00:08.4]} 42... Qf7 {[%clk 0:00:02.3]} 43. Qd3 {[%clk
0:00:08]} 43... Kg7 {[%clk 0:00:02.6]} 44. Rd1 {[%clk 0:00:07.8]} 44... Rd5
{[%clk 0:00:03]} 45. Qe2 {[%clk 0:00:07.6]} 45... Rxd1+ {[%clk 0:00:03]} 46.
Qxd1 {[%clk 0:00:08.5]} 46... Qe7 {[%clk 0:00:02.2]} 47. Qd3 {[%clk 0:00:09.1]}
47... Kf8 {[%clk 0:00:02.2]} 48. Qg6 {[%clk 0:00:08.8]} 48... Qxa3 {[%clk
0:00:02.6]} 49. Qxh6+ {[%clk 0:00:09.2]} 49... Ke7 {[%clk 0:00:02.1]} 50. Qxg5+
{[%clk 0:00:09.3]} 50... Kd7 {[%clk 0:00:02.6]} 51. h6 {[%clk 0:00:09.8]} 51...
Qa2 {[%clk 0:00:02.1]} 52. Qg7+ {[%clk 0:00:09.5]} 52... Kc6 {[%clk 0:00:02.3]}
53. h7 {[%clk 0:00:09.3]} 53... Qb1+ {[%clk 0:00:02.5]} 54. Kh2 {[%clk 0:00:09]}
54... Qf1 {[%clk 0:00:01.8]} 55. Qf6 {[%clk 0:00:06.8]} 1-0

[Event "Early-Titled-Tuesday-Blitz-October-24-2023"]
[Site "Chess.com"]
[Date "2023.10.24"]
[Round "6"]
[White "sergeikim"]
[Black "amanjazu"]
[Result "1-0"]
[WhiteElo "2601"]
[BlackElo "2413"]
[TimeControl "180+1"]
[EndTime "9:05:53 PDT"]
[Termination "sergeikim won by resignation"]

1. d4 {[%clk 0:03:00.9]} 1... Nf6 {[%clk 0:02:56.6]} 2. c4 {[%clk 0:03:00.9]}
2... g6 {[%clk 0:02:57]} 3. Nc3 {[%clk 0:03:01]} 3... Bg7 {[%clk 0:02:57.4]} 4.
e4 {[%clk 0:03:00.2]} 4... d6 {[%clk 0:02:57.9]} 5. Nge2 {[%clk 0:03:00.2]} 5...
O-O {[%clk 0:02:58.1]} 6. Ng3 {[%clk 0:03:00]} 6... Nc6 {[%clk 0:02:52.8]} 7. d5
{[%clk 0:02:59.9]} 7... Nb4 {[%clk 0:02:40.8]} 8. Be2 {[%clk 0:02:58.5]} 8... a5
{[%clk 0:02:35.9]} 9. O-O {[%clk 0:02:56.6]} 9... Na6 {[%clk 0:02:34.1]} 10. Be3
{[%clk 0:02:54.1]} 10... Nd7 {[%clk 0:02:27.8]} 11. Qd2 {[%clk 0:02:53.4]} 11...
Nac5 {[%clk 0:02:24.1]} 12. Bh6 {[%clk 0:02:51.4]} 12... Nf6 {[%clk 0:02:14.5]}
13. Bxg7 {[%clk 0:02:49.9]} 13... Kxg7 {[%clk 0:02:15.4]} 14. f4 {[%clk
0:02:49.2]} 14... h5 {[%clk 0:01:57.7]} 15. e5 {[%clk 0:02:44.1]} 15... Ng4
{[%clk 0:01:45.8]} 16. Qd4 {[%clk 0:02:21]} 16... Kg8 {[%clk 0:01:39.7]} 17.
Bxg4 {[%clk 0:01:48.9]} 17... Bxg4 {[%clk 0:01:36.9]} 18. h3 {[%clk 0:01:43.9]}
18... Bd7 {[%clk 0:01:27.3]} 19. Rae1 {[%clk 0:01:41.3]} 19... e6 {[%clk
0:01:15.2]} 20. Nce4 {[%clk 0:01:37.4]} 20... Nxe4 {[%clk 0:01:05.1]} 21. Nxe4
{[%clk 0:01:37.2]} 21... exd5 {[%clk 0:01:04.9]} 22. Nf6+ {[%clk 0:01:33.7]}
22... Kh8 {[%clk 0:01:04]} 23. cxd5 {[%clk 0:01:26.5]} 23... dxe5 {[%clk
0:00:57.9]} 24. fxe5 {[%clk 0:01:26.2]} 24... Ra6 {[%clk 0:00:48.1]} 25. e6
{[%clk 0:01:21.2]} 25... Bxe6 {[%clk 0:00:42.9]} 26. Qf4 {[%clk 0:01:11.6]}
26... Kg7 {[%clk 0:00:29.4]} 27. Qe5 {[%clk 0:01:02.3]} 27... Bc8 {[%clk
0:00:08]} 28. Nxh5+ {[%clk 0:00:59]} 28... Kh6 {[%clk 0:00:07.8]} 29. Nf6 {[%clk
0:00:30.7]} 29... Bf5 {[%clk 0:00:08]} 30. Ne4 {[%clk 0:00:20.3]} 30... Bxe4
{[%clk 0:00:07.7]} 31. Qxe4 {[%clk 0:00:20]} 31... f5 {[%clk 0:00:07.5]} 32. Qd4
{[%clk 0:00:16.8]} 32... Qf6 {[%clk 0:00:07.1]} 33. Re5 {[%clk 0:00:16.3]} 33...
Rd6 {[%clk 0:00:06.7]} 34. Rfe1 {[%clk 0:00:15.2]} 34... Rfd8 {[%clk 0:00:07.1]}
35. Qf4+ {[%clk 0:00:15]} 35... Qg5 {[%clk 0:00:06.7]} 36. Qf3 {[%clk
0:00:14.9]} 36... c6 {[%clk 0:00:06.3]} 37. dxc6 {[%clk 0:00:13.9]} 37... bxc6
{[%clk 0:00:07.2]} 38. Re7 {[%clk 0:00:12.9]} 38... Rd2 {[%clk 0:00:06.4]} 39.
Qxc6 {[%clk 0:00:10.8]} 39... R8d3 {[%clk 0:00:05.3]} 40. Qb7 {[%clk 0:00:09.5]}
40... Rxg2+ {[%clk 0:00:05.2]} 41. Qxg2 {[%clk 0:00:07.4]} 41... Rg3 {[%clk
0:00:05.5]} 42. R7e2 {[%clk 0:00:05.9]} 42... Rxg2+ {[%clk 0:00:05.6]} 43. Rxg2
{[%clk 0:00:06]} 43... Qh4 {[%clk 0:00:06.5]} 44. Ree2 {[%clk 0:00:06.1]} 44...
Qxh3 {[%clk 0:00:06.5]} 45. Rh2 {[%clk 0:00:06]} 45... Qxh2+ {[%clk 0:00:07.1]}
46. Kxh2 {[%clk 0:00:06]} 46... Kg5 {[%clk 0:00:08]} 47. Kg3 {[%clk 0:00:06.6]}
47... f4+ {[%clk 0:00:08.1]} 48. Kf3 {[%clk 0:00:06.5]} 48... Kf5 {[%clk
0:00:09]} 49. Rg2 {[%clk 0:00:06.1]} 49... g5 {[%clk 0:00:09.9]} 50. Rg1 {[%clk
0:00:06.5]} 50... a4 {[%clk 0:00:09.7]} 51. b3 {[%clk 0:00:06.7]} 51... a3
{[%clk 0:00:09.9]} 52. b4 {[%clk 0:00:06.8]} 52... Ke6 {[%clk 0:00:10.3]} 53.
Rxg5 {[%clk 0:00:06.3]} 1-0